fUST/lending_fUST_20240523
["ID","MTS","AMOUNT","RATE_DAILY","PERIOD"]
[327764928,1716449448436,-500.0,0.00033424,8]
[327764929,1716449448446,-500.0,0.00033424,9]
[327764930,1716449448455,-500.0,0.00033424,10]
[327764931,1716449448464,-500.0,0.00033424,11]
[327764932,1716449448565,-500.0,0.00033424,12]
[327764933,1716449448575,-500.0,0.00033424,13]
[327764934,1716449448585,-500.0,0.00033424,14]
[327764935,1716449448594,-500.0,0.00033424,15]
[327764936,1716449448604,-500.0,0.00033424,16]
[327764937,1716449448614,-500.0,0.00033424,17]
[327764938,1716449448623,-500.0,0.00033424,18]
[327764939,1716449448632,-500.0,0.00033424,19]
[327764940,1716449448642,-500.0,0.00033424,20]
[327764941,1716449448651,-500.0,0.00033424,21]
[327764942,1716449448661,-500.0,0.00033424,22]
[327764943,1716449448674,-500.0,0.00033424,23]
[327764944,1716449448683,-500.0,0.00033424,24]
[327764945,1716449448692,-500.0,0.00033424,25]
[327764946,1716449448703,-500.0,0.00033424,6]
[327764947,1716449448712,-593.6149024,0.00033424,25]
[327764948,1716449448722,-502.86958854,0.00033424,6]
[327764949,1716449448731,-151.0,0.00033424,6]
[327764950,1716449448741,-500.0,0.00033424,6]
[327764951,1716449448750,-500.0,0.00033424,6]
[327764952,1716449448760,-500.0,0.00033424,6]
[327764953,1716449448769,-500.0,0.00033424,6]
[327764954,1716449448779,-608.07,0.00033424,6]
[327764955,1716449448789,-608.07,0.00033424,7]
[327764956,1716449448800,-608.07,0.00033424,8]
[327764957,1716449448810,-608.07,0.00033424,9]
[327764958,1716449448819,-500.0,0.00033424,2]
[327764959,1716449448829,-608.07,0.00033424,10]
[327764960,1716449448840,-608.07,0.00033424,11]
[327764961,1716449448850,-608.07,0.00033424,12]
[327764962,1716449448860,-608.07,0.00033424,13]
[327764963,1716449448869,-608.07,0.00033424,14]
[327764964,1716449448879,-608.07,0.00033424,15]
[327764965,1716449448888,-608.07,0.00033424,16]
[327764966,1716449448898,-608.07,0.00033424,17]
[327764967,1716449448908,-608.07,0.00033424,18]
[327764968,1716449448917,-608.07,0.00033424,19]
[327764969,1716449448928,-608.07,0.00033424,20]
[327764970,1716449448938,-935.62,0.00033424,6]
[327764971,1716449448948,-608.07,0.00033424,21]
[327764972,1716449448958,-608.07,0.00033424,22]
[327764973,1716449448968,-500.0,0.00033424,6]
[327764974,1716449448977,-608.07,0.00033424,23]
[327764975,1716449448987,-608.07,0.00033424,24]
[327764976,1716449448996,-500.0,0.00033424,6]
[327764977,1716449449006,-608.07,0.00033424,25]
[327764978,1716449449016,-608.07,0.00033424,25]
[327764979,1716449449025,-608.07,0.00033424,25]
[327764980,1716449449036,-608.07,0.00033424,25]
[327764981,1716449449045,-608.23070805,0.00033424,25]
[327764982,1716449449054,-502.52389117,0.00033424,6]
[327764983,1716449449064,-509.23133353,0.00033424,6]
[327764984,1716449449074,-500.0,0.00033424,6]
[327764985,1716449449083,-500.0,0.00033424,6]
[327764986,1716449449092,-505.4168739,0.00033424,6]
[327764987,1716449449102,-273.05472635,0.00033424,6]
[327764988,1716449449111,-500.0,0.00033424,6]
[327764989,1716449449120,-500.0,0.00033424,6]
[327764990,1716449449130,-273.71788119,0.00033424,6]
[327764991,1716449449139,-500.0,0.00033424,6]
[327764992,1716449449148,-500.0,0.00033424,6]
[327764993,1716449449158,-500.0,0.00033424,6]
[327764994,1716449449168,-500.0,0.00033424,6]
[327764995,1716449449177,-1418.79,0.00033424,6]
[327764996,1716449449188,-500.0,0.00033424,6]
[327764997,1716449449199,-500.0,0.00033424,6]
[327764998,1716449449210,-500.0,0.00033424,6]
[327764999,1716449449220,-537.23,0.00033424,6]
[327765000,1716449449229,-480.90920957,0.00033424,6]
[327765001,1716449449238,-539.653964,0.00033424,6]
[327765002,1716449449248,-1779.96,0.00033424,6]
[327765003,1716449449257,-500.0,0.00033424,6]
[327765004,1716449449268,-508.64047357,0.00033424,6]
[327765005,1716449449277,-500.0,0.00033424,6]
[327765006,1716449449287,-500.0,0.00033424,6]
[327765007,1716449449298,-500.0,0.00033424,6]
[327765008,1716449449308,-500.0,0.00033424,6]
[327765009,1716449449319,-500.0,0.00033424,6]
[327765010,1716449449329,-500.0,0.00033424,6]
[327765011,1716449449340,-1159.73,0.00033424,6]
[327765012,1716449449351,-956.55,0.00033424,6]
[327765013,1716449449360,-500.0,0.00033424,6]
[327765014,1716449449369,-1599.03,0.00033424,6]
[327765015,1716449449378,-500.0,0.00033424,6]
[327765016,1716449449387,-500.0,0.00033424,6]
[327765017,1716449449396,-500.0,0.00033424,6]
[327765018,1716449449406,-500.0,0.00033424,6]
[327765019,1716449449415,-500.0,0.00033424,6]
[327765020,1716449449424,-1028.89,0.00033424,6]
[327765021,1716449449435,-4582.79,0.00033424,6]
[327765022,1716449449445,-500.0,0.00033424,6]
[327765023,1716449449455,-500.0,0.00033424,6]
[327765024,1716449449467,-841.82,0.00033424,6]
[327765025,1716449449476,-457.13069453,0.00033424,6]
[327765026,1716449449485,-500.0,0.00033424,6]
[327765027,1716449449495,-1073.11,0.00033424,2]
[327765028,1716449449504,-500.0,0.00033424,6]
[327765029,1716449449514,-500.0,0.00033424,6]
[327765030,1716449449523,-500.0,0.00033424,6]
[327765031,1716449449533,-500.0,0.00033424,6]
[327765032,1716449449543,-511.21795961,0.00033424,6]
[327765033,1716449449554,-924.58,0.00033424,6]
[327765034,1716449449563,-500.0,0.00033424,6]
[327765035,1716449449573,-717.22,0.00033424,6]
[327765036,1716449449582,-597.24,0.00033424,6]
[327765037,1716449449591,-500.0,0.00033424,6]
[327765038,1716449449603,-447.54392336,0.00033424,6]
[327765039,1716449449612,-500.0,0.00033424,6]
[327765040,1716449449621,-500.0,0.00033424,6]
[327765041,1716449449631,-505.6828694,0.00033424,7]
[327765042,1716449449640,-509.95182867,0.00033424,6]
[327765043,1716449449649,-500.0,0.00033424,6]
[327765044,1716449449659,-500.0,0.00033424,7]
[327765045,1716449449673,-5271.34,0.00033424,6]
[327765046,1716449449684,-500.0,0.00033424,8]
[327765047,1716449449693,-500.0,0.00033424,9]
[327765048,1716449449703,-500.0,0.00033424,10]
[327765049,1716449449713,-534.61500787,0.00033424,11]
[327765050,1716449449722,-2435.82,0.00033424,6]
[327765051,1716449449731,-500.0,0.00033424,6]
[327765052,1716449449740,-500.0,0.00033424,6]
[327765053,1716449449753,-500.0,0.00033424,6]
[327765054,1716449449763,-2187.96,0.00033424,6]
[327765055,1716449449773,-151.0,0.00033424,2]
[327765056,1716449449783,-151.0,0.00033424,2]
[327765057,1716449449792,-151.0,0.00033424,2]
[327765058,1716449449802,-286.76115268,0.00033424,6]
[327765070,1716450323802,3055.0,0.00015,2]
[327765072,1716450376699,311.93751344,0.00015,2]
[327765073,1716450378110,19261.33704132,0.00015,2]
[327765074,1716450385389,8553.93613396,0.00015,2]
[327765075,1716450385422,7602.01745301,0.00015,2]
[327765076,1716450386035,3373.78266972,0.00015,2]
[327765077,1716450392682,365.94477362,0.00015,2]
[327765078,1716450396113,9345.26990365,0.00015,2]
[327765079,1716450403373,281.70722696,9.999e-05,2]
[327765080,1716450405480,291.89305778,9.999e-05,2]
[327765081,1716450413248,174.70358561,9.999e-05,2]
[327765082,1716450434152,-500.0,0.00015,2]
[327765083,1716450437557,1751.69612965,9.999e-05,2]
[327765084,1716450437579,339.22050222,9.999e-05,2]
[327765085,1716450438621,19261.33704132,9.999e-05,2]
[327765086,1716450440432,224.63566001,9.999e-05,2]
[327765087,1716450451510,2089.88071131,9.999e-05,2]
[327765088,1716450454434,292.61445756,9.999e-05,2]
[327765121,1716450474618,5457.61525297,9.999e-05,2]
[327765144,1716450553214,-633.90016098,0.00015,2]
[327765145,1716450553248,-9716.06669081,0.00015,2]
[327765146,1716450553281,-254.01868978,0.00016,2]
[327765147,1716450553311,-330.42851345,0.000176,2]
[327765148,1716450553342,-291.89305778,0.00018899,2]
[327765149,1716450553372,-336.86740433,0.000189,2]
[327765150,1716450553394,-162.61642107,0.00019177,2]
[327765151,1716450553416,-167.535947,0.00019178,2]
[327765152,1716450553440,-8551.0562207,0.00019594,2]
[327765153,1716450553682,-306.93228774,0.000199,2]
[327765154,1716450553707,-5968.82367683,0.0002,2]
[327765155,1716450553729,-166.037214,0.00020464,2]
[327765156,1716450553754,-1797.47120771,0.00021,2]
[327765157,1716450563130,-193.099787,0.00021918,2]
[327765158,1716450563152,-306.93228772,0.00022209,2]
[327765159,1716450563173,-390.44065702,0.000223,2]
[327765160,1716450563194,-193.099787,0.000232,2]
[327765161,1716450570147,425.01492755,0.00019874,2]
[327765184,1716450632318,-281.70722696,0.00023899,2]
[327765185,1716450632328,-46.89084404,0.000239,2]
[327765186,1716450632339,-289.97656029,0.000239,2]
[327765187,1716450632349,-2067.06566948,0.00024382,2]
[327765188,1716450632358,-167.4969661,0.00024384,2]
[327765189,1716450632370,-338.696361,0.00024384,2]
[327765190,1716450632379,-193.099787,0.00024482,2]
[327765191,1716450632388,-174.70358561,0.00025204,2]
[327765192,1716450632398,-1565.9329403,0.00025703,2]
[327765193,1716450632408,-159.11263378,0.0002639,2]
[327765194,1716450632418,-475.0,0.00026487,2]
[327765195,1716450632427,-14666.06,0.00026487,3]
[327765196,1716450632437,-14192.96,0.0002649,3]
[327765197,1716450632446,-5254.7524045,0.00026497,11]
[327765217,1716450637835,-338.68920866,0.00026496,2]
[327765219,1716450637844,-500.0,0.00026496,2]
[327765221,1716450637854,-524.93609686,0.00026496,2]
[327765223,1716450637863,-500.0,0.00026496,2]
[327765225,1716450637875,-500.0,0.00026496,2]
[327765228,1716450637885,-524.93609686,0.00026496,2]
[327765230,1716450637895,-500.0,0.00026496,2]
[327765232,1716450637904,-554.9905472,0.00026496,2]
[327765234,1716450637913,-524.93609686,0.00026496,2]
[327765235,1716450637922,-524.93609686,0.00026496,2]
[327765238,1716450637932,-500.0,0.00026496,2]
[327765239,1716450637941,-515.44155356,0.00026496,2]
[327765241,1716450637951,-524.93609686,0.00026496,2]
[327765243,1716450637960,-500.0,0.00026496,2]
[327765245,1716450637969,-80.90695388,0.00026496,2]
[327765248,1716450637985,-444.02914298,0.00026496,2]
[327765250,1716450637994,-500.0,0.00026496,2]
[327765252,1716450638003,-76.77421973,0.00026496,2]
[327765254,1716450638015,-448.16187713,0.00026496,2]
[327765256,1716450638025,-500.0,0.00026496,2]
[327765259,1716450638035,-524.93609686,0.00026496,2]
[327765261,1716450638051,-524.93609686,0.00026496,2]
[327765263,1716450638062,-524.93609686,0.00026496,2]
[327765265,1716450638071,-238.0906356,0.00026496,2]
[327765267,1716450638088,-261.9093644,0.00026496,2]
[327765269,1716450638099,-524.93609686,0.00026496,2]
[327765271,1716450638108,-500.0,0.00026496,2]
[327765273,1716450638117,-524.93609686,0.00026496,2]
[327765275,1716450638131,-214.31531182,0.00026496,2]
[327765577,1716450643369,-10462.5,0.0002649,3]
[327765578,1716450643382,-444.58074879,0.0002649,3]
[327765579,1716450643395,-483.3986023,0.0002649,3]
[327765583,1716450643969,999.67597385,0.00019874,2]
[327765584,1716450644458,224.63566001,0.00019874,2]
[327765586,1716450645518,2096.93012572,0.00019874,2]
[327765590,1716450646587,161.1703077,0.00019874,2]
[327765591,1716450649604,155.21791351,0.00019874,2]
[327765592,1716450659420,154.95351395,9.999e-05,2]
[327765593,1716450738882,273.37336231,9.9e-05,2]
[327765594,1716450748444,273.37336231,9.9e-05,2]
[327765611,1716451521975,174.70358561,9.999e-05,2]
[327765613,1716451538513,523.92930467,9.999e-05,2]
[327765614,1716451607150,-1281.17248516,0.00018,2]
[327765615,1716451626144,-1198.82905897,0.00018,2]
[327765616,1716451628105,-255.24777301,0.00018,2]
[327765617,1716451640138,-1276.6621142,0.00018,2]
[327765618,1716451747145,-11748.4023865,0.00018,2]
[327765619,1716451753110,-150.0,0.000189,2]
[327765620,1716451825892,151.0,0.000223,3]
[327765649,1716451832191,-150.0,0.000239,2]
[327765650,1716451832201,-5147.73529905,0.0002401,2]
[327765651,1716451832213,-3421.06587645,0.0002401,2]
[327765652,1716451832223,-321.761542,0.00024384,2]
[327765653,1716451832233,-159.11263378,0.0002639,2]
[327765654,1716451832243,-159.11263378,0.000264,2]
[327765655,1716451832252,-1019.40345192,0.00026481,2]
[327765656,1716451832262,-500.0,0.00026489,2]
[327765657,1716451832271,-500.0,0.00026489,2]
[327765658,1716451832280,-657.57014163,0.00026489,2]
[327765659,1716451832290,-500.0,0.00026489,2]
[327765660,1716451832300,-500.0,0.00026489,2]
[327765661,1716451832309,-8304.08936141,0.0002649,11]
[327765662,1716451832318,-7458.94651943,0.0002649,2]
[327765663,1716451832328,-410.5949292,0.0002649,2]
[327765664,1716451832337,-227.58032339,0.0002649,2]
[327765665,1716451832346,-530.32097624,0.0002649,2]
[327765666,1716451832356,-316.32323638,0.00026491,2]
[327765667,1716451832365,-528.62113532,0.00026494,2]
[327765668,1716451832379,-233.51817611,0.00026495,2]
[327765669,1716451832389,-285.71224732,0.00026497,2]
[327765670,1716451832398,-365.04735832,0.00026497,2]
[327765671,1716451832407,-206.40610463,0.00026497,2]
[327765672,1716451832419,-3980.09499401,0.00026497,2]
[327765673,1716451832429,-1155.86319119,0.00026498,2]
[327765674,1716451832438,-155.22060541,0.00026498,2]
[327765675,1716451832449,-264.47610962,0.00026498,2]
[327765676,1716451832460,-280.70007503,0.00026498,2]
[327765677,1716451832470,-283.61954496,0.00026498,2]
[327765678,1716451832479,-155.22886848,0.00026498,2]
[327765679,1716451832490,-210.85251743,0.00026498,2]
[327765680,1716451832500,-266.528029,0.00026498,2]
[327765681,1716451832510,-1581.58969394,0.00026498,2]
[327765682,1716451832519,-835.50091713,0.00026498,2]
[327765683,1716451832528,-10454.14770375,0.00026498,2]
[327765684,1716451832538,-1554.54235768,0.00026498,2]
[327765685,1716451832548,-162.560857,0.00026499,2]
[327765686,1716451832557,-2367.68599063,0.00026499,2]
[327765687,1716451832567,-64184.62075442,0.00026499,2]
[327765688,1716451832576,-34476.54604046,0.000265,2]
[327765721,1716451838068,-996.70076215,0.0002648,3]
[327765723,1716451838079,-355.06,0.0002648,3]
[327765739,1716451840972,-1394.88,0.0002648,3]
[327765740,1716451840984,-903.05452889,0.0002648,3]
[327765760,1716451849245,3980.09499401,0.00021,2]
[327765761,1716451878240,371.36887214,9.999e-05,2]
[327765767,1716452379405,2437.72052255,9.999e-05,2]
[327765923,1716452837191,-162.61642107,0.00020913,2]
[327765924,1716452837212,-151.0,0.00022338,3]
[327765925,1716452837246,-151.0,0.00022338,3]
[327765926,1716452837267,-166.6666685,0.00022856,2]
[327765927,1716452837288,-167.535947,0.00023223,2]
[327765928,1716452837309,-1974.6041569,0.00023295,2]
[327765929,1716452837332,-151.0,0.00023346,3]
[327765930,1716452837355,-5012.50665334,0.00023399,2]
[327765931,1716452840156,-2175.72327233,0.00023399,2]
[327765932,1716452852144,-1346.84971124,0.00023399,2]
[327765934,1716452945121,-1143.36406491,0.00021925,2]
[327765935,1716452945142,-3298.56983768,0.00023399,2]
[327765936,1716452951108,-3980.09499401,0.00023399,2]
[327765937,1716452951130,-2090.47618421,0.00023399,2]
[327765938,1716452951151,-163.5107881,0.00023732,2]
[327765939,1716452957236,833.60592377,0.00021925,2]
[327765940,1716452967785,3980.09499401,0.00023399,2]
[327765941,1716452972112,-1281.8440387,0.00023966,2]
[327765942,1716452972132,-353.957823,0.00024384,2]
[327765943,1716452985779,4076.7853894,0.00023399,2]
[327765970,1716453032526,-456.49011547,0.00025,2]
[327765971,1716453032536,-4224.07535635,0.00026172,2]
[327765972,1716453032546,-449.02092685,0.0002638,2]
[327765973,1716453032555,-639.92,0.0002647,3]
[327765974,1716453032564,-5898.82,0.0002647,3]
[327765975,1716453032573,-9130.33,0.0002647,3]
[327765976,1716453032583,-7608.61,0.0002647,3]
[327765977,1716453032592,-6340.51,0.0002647,3]
[327765978,1716453032601,-155.36056009,0.00026478,2]
[327765979,1716453032611,-658.50709311,0.00026478,2]
[327765980,1716453032620,-190.39259473,0.00026479,2]
[327765981,1716453032630,-162.50529293,0.00026479,2]
[327765982,1716453032639,-411.19755255,0.00026479,2]
[327765983,1716453032648,-4152.04468071,0.0002648,11]
[327765984,1716453032657,-942.90397425,0.0002648,2]
[327765985,1716453032667,-314.80282278,0.0002648,2]
[327765986,1716453032676,-500.0,0.0002648,2]
[327765987,1716453032686,-500.0,0.0002648,2]
[327765988,1716453032695,-500.0,0.0002648,2]
[327765989,1716453032704,-500.0,0.0002648,2]
[327765990,1716453032714,-201.21013524,0.0002648,2]
[327765991,1716453032723,-244.57890391,0.0002648,2]
[327765992,1716453032732,-155.04031048,0.00026481,2]
[327765993,1716453032742,-11020.06776441,0.00026481,2]
[327765994,1716453032758,-400.0,0.00026482,2]
[327765995,1716453032767,-9462.049716,0.00026482,2]
[327766022,1716453038299,-500.0,0.00026479,2]
[327766024,1716453038314,-500.0,0.00026479,2]
[327766027,1716453038328,-500.0,0.00026479,2]
[327766029,1716453038342,-500.0,0.00026479,2]
[327766030,1716453038356,-500.0,0.00026479,2]
[327766031,1716453038370,-491.41252931,0.00026479,2]
[327766032,1716453038384,-500.0,0.00026479,2]
[327766033,1716453038399,-500.0,0.00026479,2]
[327766034,1716453038413,-500.0,0.00026479,2]
[327766035,1716453038428,-500.0,0.00026479,2]
[327766036,1716453038442,-500.0,0.00026479,2]
[327766037,1716453038452,-453.1813794,0.00026479,2]
[327766038,1716453038462,-423.92953034,0.00026479,2]
[327766039,1716453038471,-500.0,0.00026479,2]
[327766040,1716453038480,-357.42689603,0.00026479,2]
[327766055,1716453041799,-142.57310397,0.00026479,2]
[327766056,1716453041808,-196.57514627,0.00026479,2]
[327766057,1716453041820,-303.42485373,0.00026479,2]
[327766058,1716453041831,-305.07406743,0.00026479,2]
[327766059,1716453041840,-182.55955416,0.00026479,2]
[327766060,1716453041851,-500.0,0.00026479,2]
[327766061,1716453041861,-500.0,0.00026479,2]
[327766062,1716453041871,-401.72416558,0.00026479,2]
[327766063,1716453041881,-500.0,0.00026479,2]
[327766064,1716453041890,-500.0,0.00026479,2]
[327766065,1716453041900,-500.0,0.00026479,2]
[327766066,1716453041910,-500.0,0.00026479,2]
[327766067,1716453041919,-500.0,0.00026479,2]
[327766068,1716453041929,-500.0,0.00026479,2]
[327766069,1716453041938,-500.0,0.00026479,2]
[327766070,1716453041948,-500.0,0.00026479,2]
[327766071,1716453041958,-500.0,0.00026479,2]
[327766072,1716453041967,-500.0,0.00026479,2]
[327766073,1716453041977,-500.0,0.00026479,2]
[327766074,1716453041986,-500.0,0.00026479,2]
[327766075,1716453041996,-500.0,0.00026479,2]
[327766076,1716453042006,-500.0,0.00026479,2]
[327766077,1716453042016,-500.0,0.00026479,2]
[327766078,1716453042026,-500.0,0.00026479,2]
[327766079,1716453042035,-422.39325138,0.00026479,2]
[327766080,1716453042044,-500.0,0.00026479,2]
[327766081,1716453042055,-500.0,0.00026479,2]
[327766082,1716453042064,-384.82410772,0.00026479,2]
[327766096,1716453043764,-115.17589228,0.00026479,2]
[327766097,1716453043776,-500.0,0.00026479,2]
[327766098,1716453043785,-500.0,0.00026479,2]
[327766099,1716453043797,-500.0,0.00026479,2]
[327766100,1716453043806,-500.0,0.00026479,2]
[327766101,1716453043816,-500.0,0.00026479,2]
[327766102,1716453043973,-500.0,0.00026479,2]
[327766103,1716453043983,-500.0,0.00026479,2]
[327766104,1716453043993,-500.0,0.00026479,2]
[327766105,1716453044002,-500.0,0.00026479,2]
[327766106,1716453044012,-500.0,0.00026479,2]
[327766107,1716453044024,-500.0,0.00026479,2]
[327766108,1716453044033,-500.0,0.00026479,2]
[327766109,1716453044042,-527.55258231,0.00026479,2]
[327766110,1716453044051,-500.0,0.00026479,2]
[327766111,1716453044061,-500.0,0.00026479,2]
[327766112,1716453044070,-500.0,0.00026479,2]
[327766113,1716453044079,-500.0,0.00026479,2]
[327766114,1716453044089,-500.0,0.00026479,2]
[327766115,1716453044098,-500.0,0.00026479,2]
[327766116,1716453044107,-500.0,0.00026479,2]
[327766117,1716453044117,-500.0,0.00026479,2]
[327766118,1716453044127,-500.0,0.00026479,2]
[327766119,1716453044137,-500.0,0.00026479,2]
[327766120,1716453044146,-500.0,0.00026479,2]
[327766121,1716453044156,-500.0,0.00026479,2]
[327766122,1716453044166,-500.0,0.00026479,2]
[327766123,1716453044176,-500.0,0.00026479,2]
[327766124,1716453044186,-500.0,0.00026479,2]
[327766125,1716453044196,-500.0,0.00026479,2]
[327766126,1716453044205,-500.0,0.00026479,2]
[327766127,1716453044214,-500.0,0.00026479,2]
[327766128,1716453044224,-500.0,0.00026479,2]
[327766129,1716453044235,-500.0,0.00026479,2]
[327766130,1716453044245,-500.0,0.00026479,2]
[327766131,1716453044254,-500.0,0.00026479,2]
[327766132,1716453044264,-500.0,0.00026479,2]
[327766133,1716453044275,-500.0,0.00026479,2]
[327766134,1716453044284,-500.0,0.00026479,2]
[327766135,1716453044293,-500.0,0.00026479,2]
[327766136,1716453044302,-500.0,0.00026479,2]
[327766137,1716453044312,-500.0,0.00026479,2]
[327766138,1716453044322,-500.0,0.00026479,2]
[327766139,1716453044331,-500.0,0.00026479,2]
[327766140,1716453044340,-500.0,0.00026479,2]
[327766141,1716453044350,-118.01298428,0.00026479,2]
[327766168,1716453046443,-381.98701572,0.00026479,2]
[327766169,1716453046453,-500.0,0.00026479,2]
[327766170,1716453046462,-407.34257995,0.00026479,2]
[327766172,1716453046472,-268.21910544,0.00026479,2]
[327766174,1716453046482,-9158.86740229,0.00026482,2]
[327766190,1716453056882,224.57275938,0.00023399,2]
[327766191,1716453057585,155.07012203,0.00023399,2]
[327766192,1716453063836,494.95702008,0.00023399,2]
[327766193,1716453063858,11331.75706892,0.00023399,2]
[327766194,1716453141820,3980.09499401,0.00023399,2]
[327766195,1716453145226,273.37336231,9.9e-05,2]
[327766196,1716453180119,156.821,0.00014,2]
[327766198,1716453431436,6788.9515383,0.00025,60]
[327766200,1716454026164,-162.61642107,0.00020897,2]
[327766201,1716454026183,-154.93802479,0.00020898,2]
[327766202,1716454026203,-2067.06566948,0.00021751,2]
[327766203,1716454026227,-6191.24372,0.00021752,2]
[327766204,1716454026247,-166.666666,0.00021918,2]
[327766205,1716454026266,-166.666666,0.00022773,2]
[327766206,1716454026286,-671.87786836,0.00023399,2]
[327766207,1716454026316,-166.666666,0.00023627,2]
[327766208,1716454026341,-220.58815646,0.00024382,2]
[327766209,1716454026364,-336.259931,0.00024384,2]
[327766210,1716454026385,-166.666666,0.00024482,2]
[327766211,1716454026406,-9275.06,0.0002499,3]
[327766212,1716454026426,-521.83505944,0.00024999,2]
[327766213,1716454026780,627.6934824,9.999e-05,2]
[327766214,1716454050147,-2124.60261261,0.00024989,3]
[327766215,1716454094547,155.21791351,9.999e-05,2]
[327766216,1716454095099,161.1703077,9.999e-05,2]
[327766217,1716454096398,999.67597385,9.999e-05,2]
[327766218,1716454097023,224.63566001,9.999e-05,2]
[327766219,1716454104147,2096.93012572,9.999e-05,2]
[327766220,1716454153124,-425.01492755,0.00018748,2]
[327766221,1716454155113,-150.0,0.000229,2]
[327766222,1716454155139,-165.52862,0.00023031,2]
[327766223,1716454155159,-1187.8885428,0.00023168,2]
[327766224,1716454204756,273.37336231,9.9e-05,2]
[327766225,1716454210773,156.821,0.00020913,2]
[327766255,1716454232678,-446.52147829,0.00024898,2]
[327766256,1716454232688,-7375.12,0.00024988,3]
[327766257,1716454232698,-6145.93,0.00024988,3]
[327766258,1716454232707,-5121.61,0.00024988,3]
[327766259,1716454232716,-237.79,0.00024996,2]
[327766260,1716454232726,-248.24406664,0.00024997,2]
[327766261,1716454232735,-154.95351395,0.00024997,2]
[327766262,1716454232744,-500.0,0.00024997,2]
[327766263,1716454232753,-500.0,0.00024997,2]
[327766264,1716454232764,-328.82164027,0.00024997,2]
[327766265,1716454232774,-408.50630545,0.00024997,2]
[327766266,1716454232785,-500.0,0.00024997,2]
[327766267,1716454232796,-438.70971737,0.00024997,2]
[327766268,1716454232805,-500.0,0.00024997,2]
[327766269,1716454232815,-500.0,0.00024997,2]
[327766270,1716454232826,-567.76967801,0.00024997,2]
[327766271,1716454232835,-458.26577469,0.00024997,2]
[327766272,1716454232844,-500.0,0.00024997,2]
[327766273,1716454232853,-500.0,0.00024997,2]
[327766274,1716454232862,-500.0,0.00024997,2]
[327766275,1716454232872,-500.0,0.00024997,2]
[327766276,1716454232881,-500.0,0.00024997,2]
[327766277,1716454232890,-567.76967801,0.00024997,2]
[327766278,1716454232900,-500.0,0.00024997,2]
[327766279,1716454232909,-500.0,0.00024997,2]
[327766280,1716454232919,-500.0,0.00024997,2]
[327766281,1716454232928,-500.0,0.00024997,2]
[327766282,1716454232937,-332.45710215,0.00024997,2]
[327766283,1716454232946,-500.0,0.00024997,2]
[327766284,1716454232956,-567.76967801,0.00024997,2]
[327766285,1716454232965,-276.71797542,0.00024997,2]
[327766286,1716454232974,-450.0,0.00024997,2]
[327766287,1716454232984,-2076.02234036,0.00024998,11]
[327766288,1716454232993,-1421.85579601,0.00024998,2]
[327766289,1716454233003,-270.10746914,0.00024998,2]
[327766290,1716454233013,-151.0,0.00024998,2]
[327766291,1716454233023,-151.0,0.00024998,2]
[327766292,1716454233032,-262.688806,0.00024998,2]
[327766293,1716454233041,-151.0,0.00024998,2]
[327766294,1716454233050,-151.0,0.00024998,2]
[327766295,1716454233060,-151.0,0.00024998,2]
[327766296,1716454233071,-151.0,0.00024999,2]
[327766297,1716454233079,-151.0,0.00024999,2]
[327766298,1716454233088,-151.0,0.00024999,2]
[327766299,1716454233097,-151.0,0.00024999,2]
[327766300,1716454233106,-257.893528,0.00024999,2]
[327766301,1716454233116,-257.893528,0.00024999,2]
[327766302,1716454233125,-1299.916408,0.00024999,2]